fUST/lending_fUST_20250701
["ID","MTS","AMOUNT","RATE_DAILY","PERIOD"]
[368732687,1751334645320,-460.0,0.00018657,2]
[368732688,1751334645330,-2516.07,0.00018657,2]
[368732689,1751334645339,-905.63,0.00018657,2]
[368732690,1751334645349,-460.0,0.00018657,2]
[368732691,1751334645359,-460.0,0.00018658,2]
[368732692,1751334645368,-460.0,0.00018658,2]
[368732693,1751334645378,-460.0,0.00018658,2]
[368732694,1751334645389,-460.0,0.00018658,2]
[368732695,1751334645398,-460.0,0.00018658,2]
[368732696,1751334645408,-460.0,0.00018658,2]
[368732697,1751334645417,-177.69290882,0.00018658,2]
[368732698,1751334645427,-460.0,0.00018658,2]
[368732699,1751334645438,-460.0,0.00018658,2]
[368732700,1751334645447,-460.0,0.00018658,2]
[368732701,1751334645457,-460.0,0.00018658,2]
[368732702,1751334645467,-460.0,0.00018658,2]
[368732703,1751334645476,-460.0,0.00018658,2]
[368732704,1751334645487,-460.0,0.00018658,2]
[368732705,1751334645496,-517.92795654,0.00018658,2]
[368732706,1751334645506,-179.12000841,0.00018658,2]
[368732707,1751334645516,-460.0,0.00018658,2]
[368732708,1751334645525,-460.0,0.00018658,2]
[368732709,1751334645535,-460.0,0.00018658,2]
[368732710,1751334645547,-460.0,0.00018658,2]
[368732711,1751334645556,-460.0,0.00018658,2]
[368732712,1751334645565,-460.0,0.00018658,2]
[368732713,1751334645575,-460.0,0.00018658,2]
[368732714,1751334645585,-460.0,0.00018658,2]
[368732715,1751334645595,-462.22385193,0.00018658,2]
[368732716,1751334645605,-460.0,0.00018658,2]
[368732717,1751334645615,-460.0,0.00018658,2]
[368732718,1751334645625,-460.0,0.00018658,2]
[368732719,1751334645635,-460.0,0.00018658,2]
[368732720,1751334645644,-462.63336126,0.00018658,2]
[368732721,1751334645654,-460.0,0.00018658,2]
[368732722,1751334645664,-372.97716548,0.00018658,2]
[368732723,1751334645673,-460.0,0.00018767,2]
[368732724,1751334645682,-460.0,0.00018767,2]
[368732725,1751334645691,-464.77124709,0.00018828,2]
[368732726,1751334645701,-467.60772051,0.00018828,2]
[368732727,1751334645710,-460.0,0.00018828,2]
[368732728,1751334645719,-460.0,0.00018828,2]
[368732729,1751334645728,-461.68593794,0.00018829,2]
[368732730,1751334645738,-460.0,0.00018829,2]
[368732731,1751334645747,-460.0,0.00018829,2]
[368732732,1751334645757,-460.0,0.00018829,2]
[368732733,1751334645765,-460.0,0.00018829,2]
[368732734,1751334645775,-460.0,0.00018829,2]
[368732735,1751334645784,-460.0,0.00018829,2]
[368732736,1751334645794,-460.0,0.00018829,2]
[368732737,1751334645804,-460.0,0.00018829,2]
[368732738,1751334645813,-460.0,0.00018829,2]
[368732739,1751334645824,-460.0,0.00018829,2]
[368732740,1751334645833,-460.0,0.00018829,2]
[368732741,1751334645843,-465.84551242,0.00018829,2]
[368732742,1751334645853,-460.0,0.00018829,2]
[368732743,1751334645862,-460.0,0.00018829,2]
[368732744,1751334645874,-460.0,0.00018829,2]
[368732745,1751334645884,-460.0,0.00018829,2]
[368732746,1751334645893,-460.0,0.00018829,2]
[368732747,1751334645903,-466.61004074,0.00018829,2]
[368732748,1751334645913,-381.73033018,0.00018829,2]
[368732749,1751334645922,-460.0,0.00018829,2]
[368732750,1751334645932,-460.0,0.00018829,2]
[368732751,1751334645942,-213.14027062,0.00018829,2]
[368732752,1751334645952,-460.0,0.00018829,2]
[368732753,1751334645963,-460.0,0.00018829,2]
[368732754,1751334645972,-466.20955791,0.00018829,2]
[368732755,1751334645982,-460.0,0.00018829,2]
[368732756,1751334645991,-920.78,0.00018829,2]
[368732757,1751334646001,-460.0,0.00018829,2]
[368732758,1751334646011,-460.0,0.00018829,2]
[368732759,1751334646020,-461.16949471,0.00018829,2]
[368732760,1751334646030,-460.0,0.00018829,2]
[368732761,1751334646040,-460.0,0.00018829,2]
[368732762,1751334646049,-463.45457704,0.00018829,2]
[368732763,1751334646058,-460.0,0.00018829,2]
[368732764,1751334646068,-463.68123246,0.00018829,2]
[368732765,1751334646078,-460.0,0.00018829,2]
[368732766,1751334646087,-717.39,0.00018829,2]
[368732767,1751334646097,-374.37230135,0.00018829,2]
[368732768,1751334646106,-460.0,0.00018829,2]
[368732769,1751334646116,-465.47955425,0.0001883,2]
[368732770,1751334646126,-460.0,0.0001883,2]
[368732771,1751334646135,-460.0,0.0001883,2]
[368732773,1751334646144,-462.54153243,0.0001883,2]
[368732774,1751334646155,-475.16217026,0.0001883,2]
[368732775,1751334646165,-460.0,0.0001883,2]
[368732776,1751334646174,-1641.85,0.0001883,2]
[368732777,1751334646184,-460.0,0.0001883,2]
[368732778,1751334646194,-460.0,0.0001883,2]
[368732779,1751334646204,-460.0,0.0001883,2]
[368732780,1751334646213,-460.0,0.0001883,2]
[368732781,1751334646316,-1646.18,0.0001883,2]
[368732782,1751334646327,-460.0,0.0001883,2]
[368732783,1751334646337,-460.0,0.0001883,2]
[368732784,1751334646346,-1385.16,0.0001883,2]
[368732785,1751334646356,-2055.78,0.0001883,2]
[368732786,1751334646366,-460.0,0.0001883,2]
[368732787,1751334646376,-478.37704286,0.0001883,2]
[368732788,1751334646386,-510.77,0.0001883,2]
[368732789,1751334646395,-460.0,0.0001883,2]
[368732790,1751334646405,-484.95188059,0.0001883,2]
[368732791,1751334646415,-865.56,0.0001883,2]
[368732792,1751334646424,-460.0,0.0001883,2]
[368732793,1751334646434,-460.0,0.0001883,2]
[368732794,1751334646444,-463.50076844,0.0001883,2]
[368732795,1751334646454,-460.0,0.0001883,2]
[368732796,1751334646463,-460.0,0.0001883,2]
[368732797,1751334646473,-465.00674376,0.0001883,2]
[368732798,1751334646482,-460.0,0.0001883,2]
[368732799,1751334646492,-460.0,0.0001883,2]
[368732800,1751334646502,-460.0,0.00018831,2]
[368732801,1751334646512,-460.0,0.00018831,2]
[368732802,1751334646522,-460.0,0.00018831,2]
[368732803,1751334646534,-460.0,0.00018831,2]
[368732804,1751334646543,-464.67846718,0.00018831,2]
[368732805,1751334646553,-180.74930716,0.00018831,2]
[368732806,1751334646563,-460.0,0.00018831,2]
[368732807,1751334646572,-573.6626498,0.00018831,2]
[368732808,1751334646582,-465.52241756,0.00018831,2]
[368732809,1751334646591,-460.0,0.00018831,2]
[368732810,1751334646600,-499.49504557,0.00018831,2]
[368732811,1751334646610,-460.0,0.00018831,2]
[368732812,1751334646619,-460.0,0.00018831,2]
[368732813,1751334646629,-460.0,0.00018831,2]
[368732814,1751334646638,-460.0,0.00018831,2]
[368732815,1751334646648,-460.0,0.00018831,2]
[368732817,1751334646657,-460.0,0.00018831,2]
[368732818,1751334646666,-460.0,0.00018831,2]
[368732819,1751334646676,-460.0,0.00018831,2]
[368732820,1751334646685,-460.0,0.00018831,2]
[368732821,1751334646694,-460.0,0.00018831,2]
[368732822,1751334646704,-460.0,0.00018831,2]
[368732823,1751334646713,-460.0,0.00018831,2]
[368732824,1751334646722,-468.26059821,0.00018831,2]
[368732825,1751334646732,-460.0,0.00018831,2]
[368732826,1751334646741,-460.0,0.00018831,2]
[368732827,1751334646751,-460.0,0.00018831,2]
[368732828,1751334646761,-460.0,0.00018831,2]
[368732829,1751334646771,-460.0,0.00018831,2]
[368732830,1751334646780,-460.0,0.00018831,2]
[368732831,1751334646789,-460.0,0.00018831,2]
[368732832,1751334646799,-460.0,0.00018831,2]
[368732833,1751334646809,-463.57559787,0.00018831,2]
[368732834,1751334646818,-460.0,0.00018831,2]
[368732835,1751334646828,-460.0,0.00018831,2]
[368732836,1751334646838,-460.0,0.00018831,2]
[368732837,1751334646847,-464.07240573,0.00018831,2]
[368732838,1751334646858,-505.62521678,0.00018831,2]
[368732839,1751334646867,-460.0,0.00018831,2]
[368732840,1751334646881,-464.16395082,0.00018831,2]
[368732841,1751334646891,-460.0,0.00018831,2]
[368732842,1751334646900,-460.0,0.00018831,2]
[368732843,1751334646911,-460.0,0.00018831,2]
[368732844,1751334646921,-460.0,0.00018831,2]
[368732845,1751334646931,-460.0,0.00018831,2]
[368732846,1751334646941,-1452.89,0.00018831,2]
[368732847,1751334646951,-465.67727424,0.00018831,2]
[368732848,1751334646960,-495.24476762,0.00018831,2]
[368732849,1751334646970,-460.0,0.00018831,2]
[368732850,1751334646980,-460.0,0.00018831,2]
[368732851,1751334646990,-469.73949362,0.00018831,2]
[368732852,1751334647000,-460.0,0.00018831,2]
[368732853,1751334647009,-467.71009679,0.00018831,2]
[368732854,1751334647019,-474.44150293,0.00018831,2]
[368732855,1751334647029,-550.94731088,0.00018831,2]
[368732856,1751334647039,-460.0,0.00018831,2]
[368732857,1751334647050,-470.67308884,0.00018831,2]
[368732858,1751334647060,-2680.89,0.00018831,2]
[368732859,1751334647070,-465.93253144,0.00018831,2]
[368732860,1751334647080,-460.0,0.00018831,2]
[368732861,1751334647089,-460.0,0.00018831,2]
[368732862,1751334647099,-460.0,0.00018831,2]
[368732863,1751334647109,-594.27,0.00018831,2]
[368732864,1751334647119,-460.0,0.00018831,2]
[368732865,1751334647128,-558.92011148,0.00018831,2]
[368732866,1751334647138,-460.0,0.00018831,2]
[368732867,1751334647149,-528.77,0.00018831,2]
[368732868,1751334647158,-630.97,0.00018831,2]
[368732869,1751334647168,-460.0,0.00018831,2]
[368732870,1751334647179,-460.0,0.00018831,2]
[368732871,1751334647189,-471.20226756,0.00018831,2]
[368732872,1751334647200,-460.0,0.00018831,2]
[368732873,1751334647211,-467.62696925,0.00018831,2]
[368732874,1751334647221,-473.54625772,0.00018831,2]
[368732875,1751334647231,-460.0,0.00018831,2]
[368732876,1751334647241,-460.0,0.00018831,2]
[368732877,1751334647250,-460.0,0.00018831,2]
[368732878,1751334647259,-782.43,0.00018831,2]
[368732879,1751334647269,-236.93,0.00018831,2]
[368732880,1751334647279,-460.0,0.00018831,2]
[368732881,1751334647289,-2999.27789137,0.000189,2]
[368732882,1751334647299,-150.0,0.000189,2]
[368732883,1751334647309,-843.5581848,0.00018912,2]
[368732884,1751334647318,-1000.0,0.00018921,2]
[368732885,1751334647328,-1012.79569407,0.00018921,2]
[368732886,1751334647338,-460.0,0.00018921,2]
[368732887,1751334647348,-460.0,0.00018921,2]
[368732888,1751334647357,-460.0,0.00018921,2]
[368732889,1751334647366,-466.80576348,0.00018921,2]
[368732890,1751334647376,-460.0,0.00018921,2]
[368732891,1751334647385,-466.4866833,0.00018921,2]
[368732892,1751334647395,-285.14647693,0.00018921,2]
[368732893,1751334647405,-460.0,0.00018921,2]
[368732894,1751334647414,-461.29538638,0.00018921,2]
[368732895,1751334647423,-462.00048598,0.00018921,2]
[368732896,1751334647433,-460.0,0.00018921,2]
[368732897,1751334647443,-460.0,0.00018921,2]
[368732898,1751334647453,-462.8305328,0.00018921,2]
[368732899,1751334647462,-460.0,0.00018921,2]
[368732900,1751334647472,-475.94771418,0.00018921,2]
[368732901,1751334647481,-470.80745548,0.00018921,2]
[368732902,1751334647491,-460.0,0.00018921,2]
[368732903,1751334647501,-460.0,0.00018921,2]
[368732904,1751334647511,-460.0,0.00018921,2]
[368732905,1751334647521,-460.0,0.00018921,2]
[368732906,1751334647531,-460.0,0.00018921,2]
[368732907,1751334647541,-460.0,0.00018921,2]
[368732908,1751334647551,-551.01435286,0.00018921,2]
[368732909,1751334647560,-460.0,0.0001893,2]
[368732910,1751334647570,-460.0,0.00018931,2]
[368732911,1751334647580,-466.40012559,0.00018931,2]
[368732912,1751334647589,-461.71419324,0.00018931,2]
[368732913,1751334647599,-460.0,0.00018931,2]
[368732914,1751334647609,-493.75512112,0.00018931,2]
[368732915,1751334647618,-460.0,0.00018931,2]
[368732916,1751334647628,-460.0,0.00018931,2]
[368732917,1751334647638,-460.0,0.00018931,2]
[368732918,1751334647648,-460.0,0.00018931,2]
[368732919,1751334647657,-460.0,0.00018931,2]
[368732920,1751334647667,-460.0,0.00018931,2]
[368732921,1751334647677,-460.0,0.00018931,2]
[368732922,1751334647686,-460.0,0.00018931,2]
[368732923,1751334647696,-462.83465594,0.00018931,2]
[368732924,1751334647705,-460.0,0.00018931,2]
[368732925,1751334647715,-465.80511383,0.00018931,2]
[368732926,1751334647725,-460.0,0.00018931,2]
[368732927,1751334647734,-470.72972579,0.00018931,2]
[368732928,1751334647744,-460.0,0.00018931,2]
[368732929,1751334647753,-463.37303558,0.00018931,2]
[368732930,1751334647764,-460.0,0.00018931,2]
[368732931,1751334647773,-460.0,0.00018931,2]
[368732932,1751334647782,-460.0,0.00018931,2]
[368732933,1751334647792,-460.0,0.00018931,2]
[368732934,1751334647801,-460.0,0.00018931,2]
[368732935,1751334647811,-460.0,0.00018931,2]
[368732936,1751334647820,-460.0,0.00018931,2]
[368732937,1751334647831,-460.0,0.00018931,2]
[368732938,1751334647840,-460.0,0.00018931,2]
[368732939,1751334647850,-460.0,0.00018931,2]
[368732940,1751334647857,-466.43292993,0.00018931,2]
[368732941,1751334647868,-465.39161474,0.00018931,2]
[368732942,1751334647962,-460.0,0.00018931,2]
[368732943,1751334647979,-466.04718785,0.00018931,2]
[368732944,1751334647988,-460.0,0.00018931,2]
[368732945,1751334647998,-460.0,0.00018931,2]
[368732946,1751334648008,-460.0,0.00018931,2]
[368732947,1751334648017,-212.37282795,0.00018931,2]
[368732948,1751334648027,-460.0,0.00018931,2]
[368732949,1751334648037,-460.0,0.00018931,2]
[368732950,1751334648047,-460.0,0.00018931,2]
[368732951,1751334648057,-460.0,0.00018931,2]
[368732952,1751334648067,-296.21072939,0.00018931,2]
[368732953,1751334648076,-460.0,0.00018931,2]
[368732954,1751334648087,-460.0,0.00018931,2]
[368732955,1751334648096,-460.0,0.00018931,2]
[368732956,1751334648106,-460.0,0.00018931,2]
[368732957,1751334648116,-460.0,0.00018931,2]
[368732958,1751334648126,-460.0,0.00018931,2]
[368732959,1751334648136,-460.0,0.00018931,2]
[368732960,1751334648146,-460.0,0.00018931,2]
[368732961,1751334648156,-460.0,0.00018931,2]
[368732962,1751334648166,-460.0,0.00018931,2]
[368732963,1751334648176,-460.0,0.00018931,2]
[368732964,1751334648185,-460.0,0.00018931,2]
[368732965,1751334648195,-593.57442775,0.00018931,2]
[368732966,1751334648205,-1391.17,0.00018931,2]
[368732967,1751334648215,-374.88800127,0.00018931,2]
[368732968,1751334648225,-460.0,0.00018931,2]
[368732969,1751334648234,-460.0,0.00018931,2]
[368732970,1751334648244,-460.0,0.00018931,2]
[368732971,1751334648253,-460.0,0.00018931,2]
[368732972,1751334648264,-465.59312069,0.00018931,2]
[368732973,1751334648273,-460.0,0.00018931,2]
[368732974,1751334648283,-1207.15,0.00018931,2]
[368732975,1751334648292,-460.0,0.00018931,2]
[368732976,1751334648302,-460.0,0.00018931,2]
[368732977,1751334648312,-460.0,0.00018931,2]
[368732978,1751334648321,-460.0,0.00018931,2]
[368732979,1751334648331,-460.0,0.00018931,2]
[368732980,1751334648341,-466.09452312,0.00018931,2]
[368732981,1751334648352,-460.0,0.00018931,2]
[368732982,1751334648361,-460.0,0.00018931,2]
[368732983,1751334648371,-2516.07,0.00018931,2]
[368732984,1751334648381,-905.63,0.00018931,2]
[368732985,1751334648392,-460.0,0.00018931,2]
[368732986,1751334648403,-460.0,0.00018932,2]
[368732987,1751334648412,-460.0,0.00018932,2]
[368732988,1751334648422,-460.0,0.00018932,2]
[368732989,1751334648432,-460.0,0.00018932,2]
[368732990,1751334648442,-460.0,0.00018932,2]
[368732991,1751334648453,-460.0,0.00018932,2]
[368732992,1751334648463,-460.0,0.00018932,2]
[368732993,1751334648473,-460.0,0.00018932,2]
[368732994,1751334648483,-460.0,0.00018932,2]
[368732995,1751334648493,-460.0,0.00018932,2]
[368732996,1751334648505,-460.0,0.00018932,2]
[368732997,1751334648515,-460.0,0.00018932,2]
[368732998,1751334648525,-460.0,0.00018932,2]
[368732999,1751334648535,-460.0,0.00018932,2]
[368733000,1751334648545,-460.0,0.00018932,2]
[368733001,1751334648554,-460.0,0.00018932,2]
[368733002,1751334648564,-460.0,0.00018932,2]
[368733003,1751334648574,-460.0,0.00018932,2]
[368733004,1751334648585,-460.0,0.00018932,2]
[368733005,1751334648595,-460.0,0.00018932,2]
[368733006,1751334648605,-464.13609312,0.00018932,2]
[368733007,1751334648615,-466.57569299,0.00018932,2]
[368733008,1751334648625,-460.0,0.00018932,2]
[368733009,1751334648635,-460.0,0.00018932,2]
[368733010,1751334648644,-435.51185357,0.00018932,2]
[368733011,1751334648654,-460.0,0.00018932,2]
[368733012,1751334648663,-500.0,0.00018977,2]
[368733013,1751334648673,-500.0,0.00018977,2]
[368733014,1751334648683,-394.76387698,0.00018992,2]
[368733015,1751334648693,-460.0,0.00019041,2]
[368733016,1751334648703,-460.0,0.00019041,2]
[368733017,1751334648713,-460.0,0.00019102,2]
[368733018,1751334648723,-303.6860392,0.00019102,2]
[368733019,1751334648733,-460.0,0.00019103,2]
[368733020,1751334648743,-464.21468383,0.00019103,2]
[368733021,1751334648752,-460.0,0.00019103,2]
[368733022,1751334648762,-420.67987744,0.00019103,2]
[368733023,1751334648773,-461.33603647,0.00019103,2]
[368733024,1751334648783,-460.0,0.00019103,2]
[368733025,1751334648792,-460.0,0.00019103,2]
[368733026,1751334648802,-465.09729009,0.00019103,2]
[368733027,1751334648811,-460.0,0.00019103,2]
[368733028,1751334648820,-468.43266677,0.00019103,2]
[368733029,1751334648830,-460.0,0.00019103,2]
[368733030,1751334648839,-462.15474306,0.00019103,2]
[368733031,1751334648849,-463.44615975,0.00019103,2]
[368733032,1751334648859,-460.0,0.00019103,2]
[368733033,1751334648870,-460.0,0.00019103,2]
[368733034,1751334648883,-463.8227715,0.00019103,2]
[368733035,1751334648893,-463.58436529,0.00019103,2]
[368733036,1751334648902,-460.0,0.00019103,2]
[368733037,1751334648912,-460.0,0.00019103,2]
[368733038,1751334648923,-460.0,0.00019103,2]
[368733039,1751334648933,-920.78,0.00019103,2]
[368733040,1751334648942,-460.0,0.00019103,2]
[368733041,1751334648953,-464.23644676,0.00019103,2]
[368733042,1751334648964,-466.34430824,0.00019103,2]
[368733043,1751334648973,-460.0,0.00019103,2]
[368733044,1751334648982,-379.48262594,0.00019103,2]
[368733045,1751334648992,-460.0,0.00019103,2]
[368733046,1751334649001,-717.39,0.00019103,2]
[368733047,1751334649011,-474.06788294,0.00019103,2]
[368733048,1751334649021,-460.0,0.00019104,2]
[368733049,1751334649031,-460.0,0.00019104,2]
[368733050,1751334649041,-460.0,0.00019104,2]
[368733051,1751334649051,-460.0,0.00019104,2]
[368733052,1751334649060,-460.0,0.00019104,2]
[368733053,1751334649069,-1641.85,0.00019104,2]
[368733054,1751334649079,-460.0,0.00019104,2]
[368733055,1751334649088,-349.21798033,0.00019104,2]
[368733056,1751334649097,-460.0,0.00019104,2]
[368733057,1751334649107,-460.0,0.00019104,2]
[368733058,1751334649117,-1646.18,0.00019104,2]
[368733059,1751334649127,-460.0,0.00019104,2]
[368733060,1751334649136,-568.45971928,0.00019104,2]
[368733061,1751334649146,-1385.16,0.00019104,2]
[368733062,1751334649156,-2055.78,0.00019104,2]
[368733063,1751334649166,-460.0,0.00019104,2]
[368733064,1751334649175,-510.77,0.00019104,2]
[368733065,1751334649185,-460.0,0.00019104,2]
[368733066,1751334649195,-865.56,0.00019104,2]
[368733067,1751334649204,-460.0,0.00019104,2]
[368733068,1751334649214,-460.0,0.00019104,2]
[368733069,1751334649224,-462.90301578,0.00019104,2]
[368733070,1751334649233,-460.0,0.00019104,2]
[368733071,1751334649243,-193.09273131,0.00019104,2]
[368733072,1751334649253,-260.68305732,0.00019104,2]
[368733073,1751334649263,-378.57872942,0.00019105,2]
[368733074,1751334649273,-460.0,0.00019105,2]
[368733075,1751334649282,-460.0,0.00019105,2]
[368733076,1751334649292,-460.0,0.00019105,2]
[368733077,1751334649303,-460.0,0.00019105,2]
[368733078,1751334649313,-251.73521825,0.00019105,2]
[368733079,1751334649323,-158.20573376,0.00019105,2]
[368733080,1751334649333,-460.0,0.00019105,2]
[368733081,1751334649342,-469.90630575,0.00019105,2]
[368733082,1751334649353,-466.51049331,0.00019105,2]
[368733083,1751334649363,-460.0,0.00019105,2]
[368733084,1751334649373,-460.0,0.00019105,2]
[368733085,1751334649383,-460.0,0.00019105,2]
[368733086,1751334649392,-460.0,0.00019105,2]
[368733087,1751334649402,-460.0,0.00019105,2]
[368733088,1751334649412,-460.0,0.00019105,2]
[368733089,1751334649422,-465.62676226,0.00019105,2]
[368733090,1751334649519,-467.28626559,0.00019105,2]
[368733091,1751334649530,-463.75090706,0.00019105,2]
[368733092,1751334649541,-464.93593845,0.00019105,2]
[368733093,1751334649551,-464.80136715,0.00019105,2]
[368733094,1751334649561,-460.0,0.00019105,2]
[368733095,1751334649570,-460.0,0.00019105,2]
[368733096,1751334649581,-460.0,0.00019105,2]
[368733097,1751334649592,-460.0,0.00019105,2]
[368733098,1751334649601,-460.0,0.00019105,2]
[368733099,1751334649612,-460.0,0.00019105,2]
[368733100,1751334649621,-460.0,0.00019105,2]
[368733101,1751334649631,-460.0,0.00019105,2]
[368733102,1751334649640,-460.0,0.00019105,2]
[368733103,1751334649650,-469.65592487,0.00019105,2]
[368733104,1751334649660,-460.0,0.00019105,2]
[368733105,1751334649670,-460.0,0.00019105,2]
[368733106,1751334649679,-468.33772551,0.00019105,2]
[368733107,1751334649689,-460.0,0.00019105,2]
[368733108,1751334649699,-1452.89,0.00019105,2]
[368733109,1751334649709,-460.0,0.00019105,2]
[368733110,1751334649720,-460.0,0.00019105,2]
[368733111,1751334649731,-460.0,0.00019105,2]
[368733112,1751334649740,-460.0,0.00019105,2]
[368733113,1751334649750,-2680.89,0.00019105,2]
[368733114,1751334649760,-460.0,0.00019105,2]
[368733115,1751334649769,-460.0,0.00019105,2]
[368733116,1751334649779,-594.27,0.00019105,2]
[368733117,1751334649789,-460.0,0.00019105,2]
[368733118,1751334649799,-460.0,0.00019105,2]
[368733119,1751334649808,-287.04654228,0.00019105,2]
[368733120,1751334649818,-528.77,0.00019105,2]
[368733121,1751334649828,-630.97,0.00019105,2]
[368733122,1751334649837,-460.0,0.00019105,2]
[368733123,1751334649847,-460.0,0.00019105,2]
[368733124,1751334649857,-460.0,0.00019105,2]
[368733125,1751334649867,-460.0,0.00019105,2]
[368733126,1751334649881,-782.43,0.00019105,2]
[368733127,1751334649892,-460.0,0.00019105,2]
[368733128,1751334649901,-247.92315083,0.00019181,2]
[368733129,1751334649910,-460.0,0.00019195,2]
[368733130,1751334649919,-466.00231493,0.00019195,2]
[368733131,1751334649929,-464.62558177,0.00019195,2]
[368733132,1751334649938,-464.53053215,0.00019195,2]
[368733133,1751334649947,-460.0,0.00019195,2]
[368733134,1751334649956,-460.0,0.00019195,2]
[368733135,1751334649967,-460.0,0.00019195,2]
[368733136,1751334649976,-460.0,0.00019195,2]
[368733137,1751334649985,-469.88329723,0.00019195,2]
[368733138,1751334649995,-460.0,0.00019195,2]
[368733139,1751334650005,-460.0,0.00019195,2]
[368733140,1751334650015,-460.0,0.00019195,2]
[368733141,1751334650025,-460.0,0.00019195,2]
[368733142,1751334650034,-460.0,0.00019195,2]
[368733143,1751334650043,-460.0,0.00019204,2]
[368733144,1751334650053,-466.81981351,0.00019205,2]
[368733145,1751334650063,-569.51374186,0.00019205,2]
[368733146,1751334650072,-460.0,0.00019205,2]
[368733147,1751334650081,-460.0,0.00019205,2]
[368733148,1751334650090,-460.0,0.00019205,2]
[368733149,1751334650100,-460.0,0.00019205,2]
[368733150,1751334650108,-427.80854173,0.00019205,2]
[368733151,1751334650117,-460.0,0.00019205,2]
[368733152,1751334650125,-460.0,0.00019205,2]
[368733153,1751334650133,-354.5286068,0.00019205,2]
[368733154,1751334650141,-381.43769034,0.00019205,2]
[368733155,1751334650150,-463.33434395,0.00019205,2]
[368733156,1751334650158,-464.12463616,0.00019205,2]
[368733157,1751334650167,-466.17875467,0.00019205,2]
[368733158,1751334650177,-460.0,0.00019205,2]
[368733159,1751334650186,-460.0,0.00019205,2]
[368733160,1751334650196,-464.52773921,0.00019205,2]
[368733161,1751334650205,-471.15233151,0.00019205,2]
[368733162,1751334650215,-529.20750466,0.00019205,2]
[368733163,1751334650225,-465.30658399,0.00019205,2]
[368733164,1751334650235,-460.0,0.00019205,2]
[368733165,1751334650244,-460.0,0.00019205,2]
[368733166,1751334650253,-534.56575162,0.00019205,2]
[368733167,1751334650263,-409.39750767,0.00019205,2]
[368733168,1751334650272,-473.19000298,0.00019205,2]
[368733169,1751334650282,-470.01254515,0.00019205,2]
[368733170,1751334650292,-460.0,0.00019205,2]
[368733171,1751334650301,-460.0,0.00019205,2]
[368733172,1751334650312,-460.0,0.00019205,2]
[368733173,1751334650323,-460.0,0.00019205,2]
[368733174,1751334650333,-472.48771926,0.00019205,2]
[368733175,1751334650343,-465.5461435,0.00019205,2]
[368733176,1751334650353,-467.1941877,0.00019205,2]
[368733177,1751334650363,-460.0,0.00019205,2]
[368733178,1751334650373,-471.23947225,0.00019205,2]
[368733179,1751334650383,-460.0,0.00019205,2]
[368733180,1751334650394,-460.0,0.00019205,2]
[368733181,1751334650403,-464.16146576,0.00019205,2]
[368733182,1751334650412,-467.75536848,0.00019205,2]
[368733183,1751334650423,-1391.17,0.00019205,2]
[368733184,1751334650434,-465.49882219,0.00019205,2]
[368733185,1751334650443,-460.0,0.00019205,2]
[368733186,1751334650453,-460.0,0.00019205,2]
[368733187,1751334650463,-460.0,0.00019205,2]
[368733188,1751334650472,-465.27293475,0.00019205,2]